fUSD/lending_fUSD_20250916
["ID","MTS","AMOUNT","RATE_DAILY","PERIOD"]
[385811333,1758055854671,-400.0,0.00030136,6]
[385811334,1758055854680,-1339.24,0.00030136,6]
[385811335,1758055854690,-590.86,0.00030136,6]
[385811336,1758055854699,-400.0,0.00030136,6]
[385811337,1758055854708,-494.7,0.00030136,6]
[385811338,1758055854717,-4365.82,0.00030136,6]
[385811339,1758055854727,-400.0,0.00030136,6]
[385811340,1758055854736,-400.0,0.00030136,6]
[385811341,1758055854746,-995.2,0.00030136,6]
[385811342,1758055854755,-400.0,0.00030136,6]
[385811343,1758055854765,-400.0,0.00030136,6]
[385811344,1758055854774,-588.68,0.00030136,6]
[385811345,1758055854784,-400.0,0.00030136,6]
[385811346,1758055854794,-850.17789388,0.00030136,7]
[385811347,1758055854804,-965.27,0.00030136,6]
[385811348,1758055854815,-400.0,0.00030136,6]
[385811349,1758055854826,-400.0,0.00030136,6]
[385811350,1758055854835,-400.0,0.00030136,6]
[385811351,1758055854844,-500.0,0.00030136,6]
[385811352,1758055854854,-500.0,0.00030136,6]
[385811353,1758055854863,-509.6682264,0.00030136,6]
[385811354,1758055854872,-500.0,0.00030136,6]
[385811355,1758055854883,-693.26,0.00030136,6]
[385811356,1758055854893,-915.59,0.00030136,6]
[385811357,1758055854903,-400.0,0.00030136,6]
[385811358,1758055854913,-1092.66,0.00030136,6]
[385811359,1758055854922,-400.0,0.00030136,6]
[385811360,1758055854932,-400.0,0.00030136,6]
[385811361,1758055854942,-400.0,0.00030136,6]
[385811362,1758055854951,-400.0,0.00030136,6]
[385811363,1758055854960,-873.33,0.00030136,6]
[385811364,1758055854969,-659.67,0.00030136,6]
[385811365,1758055854979,-400.0,0.00030136,6]
[385811366,1758055854988,-400.0,0.00030136,6]
[385811367,1758055854999,-724.66,0.00030136,6]
[385811368,1758055855009,-400.0,0.00030136,6]
[385811369,1758055855019,-400.0,0.00030136,6]
[385811370,1758055855028,-400.0,0.00030136,6]
[385811371,1758055855037,-463.42,0.00030136,6]
[385811372,1758055855046,-400.0,0.00030136,6]
[385811373,1758055855055,-1187.49,0.00030136,6]
[385811374,1758055855065,-402.00203416,0.00030136,6]
[385811375,1758055855075,-400.0,0.00030136,6]
[385811376,1758055855087,-400.0,0.00030136,6]
[385811377,1758055855098,-400.0,0.00030136,6]
[385811378,1758055855108,-611.4,0.00030136,6]
[385811379,1758055855119,-400.0,0.00030136,6]
[385811380,1758055855129,-400.0,0.00030136,6]
[385811381,1758055855139,-400.0,0.00030136,6]
[385811382,1758055855149,-2551.67,0.00030136,6]
[385811383,1758055855162,-2057.54,0.00030136,6]
[385811384,1758055855171,-400.0,0.00030136,6]
[385811385,1758055855180,-825.95,0.00030136,6]
[385811386,1758055855189,-400.0,0.00030136,6]
[385811387,1758055855198,-2051.76,0.00030136,6]
[385811388,1758055855208,-400.0,0.00030136,6]
[385811389,1758055855217,-400.0,0.00030136,6]
[385811390,1758055855227,-752.32,0.00030136,6]
[385811391,1758055855237,-400.0,0.00030136,6]
[385811392,1758055855246,-400.0,0.00030136,6]
[385811393,1758055855255,-400.0,0.00030136,6]
[385811394,1758055855265,-449.27,0.00030136,6]
[385811395,1758055855274,-400.0,0.00030136,6]
[385811396,1758055855285,-457.48,0.00030136,6]
[385811397,1758055855296,-400.0,0.00030136,6]
[385811398,1758055855307,-168.40261903,0.00030136,6]
[385811399,1758055855318,-633.85,0.00030136,6]
[385811400,1758055855328,-219.97650229,0.00030136,6]
[385811401,1758055855341,-400.0,0.00030136,6]
[385811402,1758055855350,-400.0,0.00030136,6]
[385811403,1758055855360,-809.23,0.00030136,6]
[385811404,1758055855513,-400.0,0.00030136,6]
[385811405,1758055855524,-400.0,0.00030136,6]
[385811406,1758055855535,-400.0,0.00030136,6]
[385811407,1758055855544,-1149.2,0.00030136,6]
[385811408,1758055855553,-400.0,0.00030136,6]
[385811409,1758055855563,-400.0,0.00030136,6]
[385811410,1758055855572,-400.0,0.00030136,6]
[385811411,1758055855582,-400.0,0.00030136,6]
[385811412,1758055855590,-757.93,0.00030136,6]
[385811413,1758055855599,-678.31,0.00030136,6]
[385811414,1758055855607,-400.0,0.00030136,6]
[385811415,1758055855615,-400.0,0.00030136,6]
[385811416,1758055855623,-406.64,0.00030136,6]
[385811417,1758055855631,-669.07,0.00030136,6]
[385811418,1758055855638,-400.0,0.00030136,6]
[385811419,1758055855646,-435.49,0.00030136,6]
[385811420,1758055855654,-400.0,0.00030136,6]
[385811421,1758055855663,-655.53,0.00030136,2]
[385811422,1758055855672,-400.0,0.00030136,6]
[385811423,1758055855682,-655.53,0.00030136,2]
[385811424,1758055855691,-655.53,0.00030136,2]
[385811425,1758055855700,-655.53,0.00030136,2]
[385811426,1758055855709,-544.7,0.00030136,6]
[385811427,1758055855718,-400.0,0.00030136,6]
[385811428,1758055855728,-755.72,0.00030136,6]
[385811429,1758055855737,-400.0,0.00030136,6]
[385811430,1758055855746,-1264.24,0.00030136,6]
[385811431,1758055855755,-2602.41,0.00030136,6]
[385811432,1758055855765,-404.50385747,0.00030136,6]
[385811433,1758055855774,-400.0,0.00030136,6]
[385811434,1758055855783,-400.0,0.00030136,6]
[385811435,1758055855792,-400.0,0.00030136,6]
[385811436,1758055855801,-400.0,0.00030136,6]
[385811437,1758055855812,-343.15472105,0.00030136,6]
[385811438,1758055855821,-651.62,0.00030136,6]
[385811439,1758055855829,-655.53,0.00030136,2]
[385811440,1758055855839,-655.53,0.00030136,2]
[385811441,1758055855848,-655.53,0.00030136,2]
[385811442,1758055855858,-400.0,0.00030136,6]
[385811443,1758055855868,-400.0,0.00030136,6]
[385811444,1758055855877,-655.53,0.00030136,2]
[385811445,1758055855886,-200.0,0.00030136,2]
[385811446,1758055855897,-400.0,0.00030136,6]
[385811447,1758055855908,-400.0,0.00030136,6]
[385811448,1758055855917,-400.0,0.00030136,6]
[385811449,1758055855927,-400.0,0.00030136,6]
[385811450,1758055855937,-400.0,0.00030136,6]
[385811451,1758055855946,-4091.94,0.00030136,6]
[385811452,1758055855955,-400.0,0.00030136,6]
[385811453,1758055855964,-400.0,0.00030136,6]
[385811454,1758055855973,-400.0,0.00030136,6]
[385811455,1758055855982,-475.44,0.00030136,6]
[385811456,1758055855991,-400.0,0.00030136,6]
[385811457,1758055856000,-400.0,0.00030136,6]
[385811458,1758055856010,-400.0,0.00030136,6]
[385811459,1758055856019,-400.0,0.00030136,6]
[385811460,1758055856028,-405.59,0.00030136,6]
[385811461,1758055856037,-2380.39,0.00030136,6]
[385811462,1758055856046,-400.0,0.00030136,6]
[385811463,1758055856056,-400.0,0.00030136,6]
[385811464,1758055856065,-279.75673409,0.00030136,6]
[385811465,1758055856074,-503.64,0.00030136,6]
[385811466,1758055856084,-405.86,0.00030136,6]
[385811467,1758055856094,-1940.41,0.00030136,6]
[385811468,1758055856103,-400.0,0.00030136,5]
[385811469,1758055856112,-400.0,0.00030136,6]
[385811470,1758055856121,-400.0,0.00030136,6]
[385811471,1758055856130,-400.0,0.00030136,6]
[385811472,1758055856139,-400.0,0.00030136,6]
[385811473,1758055856148,-852.09,0.00030136,6]
[385811474,1758055856157,-228.67757296,0.00030136,6]
[385811475,1758055856167,-400.0,0.00030136,3]
[385811476,1758055856176,-623.1,0.00030136,6]
[385811477,1758055856185,-400.0,0.00030136,6]
[385811478,1758055856194,-400.0,0.00030136,6]
[385811479,1758055856203,-794.77,0.00030136,6]
[385811480,1758055856212,-700.18,0.00030136,6]
[385811481,1758055856221,-402.96170281,0.00030136,6]
[385811482,1758055856230,-400.0,0.00030136,6]
[385811483,1758055856240,-464.58,0.00030136,6]
[385811484,1758055856249,-400.0,0.00030136,6]
[385811485,1758055856259,-400.0,0.00030136,6]
[385811486,1758055856268,-400.0,0.00030136,6]
[385811487,1758055856277,-400.57776706,0.00030136,6]
[385811488,1758055856286,-400.0,0.00030136,6]
[385811489,1758055856295,-400.0,0.00030136,6]
[385811490,1758055856305,-424.86389676,0.00030136,6]
[385811491,1758055856314,-178.27868595,0.00030136,2]
[385811492,1758055856323,-400.0,0.00030136,6]
[385811493,1758055856333,-400.0,0.00030136,6]
[385811494,1758055856344,-400.0,0.00030136,6]
[385811495,1758055856353,-742.26,0.00030136,6]
[385811496,1758055856363,-400.0,0.00030136,6]
[385811497,1758055856372,-400.0,0.00030136,6]
[385811498,1758055856381,-679.38,0.00030136,6]
[385811499,1758055856391,-419.78,0.00030136,6]
[385811500,1758055856400,-885.24,0.00030136,6]
[385811501,1758055856410,-1211.27,0.00030136,6]
[385811502,1758055856419,-400.0,0.00030136,6]
[385811503,1758055856428,-400.0,0.00030136,6]
[385811504,1758055856437,-400.0,0.00030136,6]
[385811505,1758055856447,-400.0,0.00030136,6]
[385811506,1758055856456,-2714.52,0.00030136,6]
[385811507,1758055856466,-472.34,0.00030136,6]
[385811508,1758055856476,-400.0,0.00030136,6]
[385811509,1758055856486,-400.0,0.00030136,6]
[385811510,1758055856495,-400.0,0.00030136,6]
[385811511,1758055856504,-400.0,0.00030136,6]
[385811512,1758055856514,-456.67,0.00030136,6]
[385811513,1758055856523,-400.0,0.00030136,6]
[385811514,1758055856533,-400.0,0.00030136,6]
[385811515,1758055856542,-400.0,0.00030136,6]
[385811516,1758055856551,-1686.16,0.00030136,6]
[385811517,1758055856561,-400.0,0.00030136,6]
[385811518,1758055856570,-400.0,0.00030136,6]
[385811519,1758055856579,-400.0,0.00030136,6]
[385811520,1758055856588,-440.7,0.00030136,6]
[385811521,1758055856598,-400.0,0.00030136,6]
[385811522,1758055856607,-702.86,0.00030136,6]
[385811523,1758055856617,-228.763832,0.00030136,7]
[385811524,1758055856627,-9140.01930807,0.00030141,2]
[385811525,1758055856637,-16250.29897114,0.00030164,2]
[385811526,1758055856646,-500.0,0.00030173,5]
[385811527,1758055856655,-500.0,0.00030173,5]
[385811528,1758055856665,-500.0,0.00030173,5]
[385811529,1758055856675,-500.0,0.00030173,5]
[385811530,1758055856684,-504.38442263,0.00030173,5]
[385811531,1758055856694,-504.62513184,0.00030173,5]
[385811532,1758055856703,-200.0,0.00030173,5]
[385811533,1758055856713,-500.0,0.00030173,5]
[385811534,1758055856722,-500.0,0.00030173,5]
[385811535,1758055856731,-3545.67,0.000302,3]
[385811536,1758055856741,-405.40790687,0.0003023,15]
[385811537,1758055856750,-393.76,0.00030289,2]
[385811538,1758055856759,-504.00350006,0.00030295,2]
[385811539,1758055856768,-3545.67,0.000303,3]
[385811540,1758055856778,-9140.01930807,0.00030306,2]
[385811541,1758055856788,-1571.87374024,0.0003031,2]
[385811542,1758055856797,-1227.2376275,0.0003031,2]
[385811543,1758055856807,-1002.95861149,0.00030321,2]
[385811544,1758055856816,-245.61133265,0.00030321,5]
[385811545,1758055856825,-1000.0,0.00030321,5]
[385811546,1758055856835,-200.0,0.00030334,2]
[385811547,1758055856844,-954.48247,0.0003034,2]
[385811548,1758055856853,-16250.29897114,0.00030357,2]
[385811549,1758055856863,-500.0,0.00030358,11]
[385811550,1758055856872,-389.00242953,0.00030358,11]
[385811551,1758055856881,-151.0,0.00030363,4]
[385811552,1758055856891,-150.0,0.00030366,2]
[385811553,1758055856901,-1000.0,0.00030371,2]
[385811554,1758055856911,-168.0,0.00030373,2]
[385811555,1758055856920,-1000.0,0.00030374,2]
[385811556,1758055856929,-1000.0,0.00030375,2]
[385811557,1758055856939,-500.0,0.00030379,11]
[385811558,1758055856948,-500.0,0.00030379,11]
[385811559,1758055856957,-500.0,0.00030379,11]
[385811560,1758055856967,-500.0,0.00030379,11]
[385811561,1758055856977,-500.0,0.00030379,11]
[385811562,1758055856987,-500.0,0.00030379,11]
[385811563,1758055856996,-500.0,0.00030379,11]
[385811564,1758055857005,-500.0,0.00030379,11]
[385811565,1758055857015,-211.62,0.0003038,2]
[385811566,1758055857025,-500.0,0.00030383,120]
[385811567,1758055857035,-500.0,0.00030389,6]
[385811568,1758055857044,-470.0,0.00030396,2]
[385811569,1758055857053,-200.0,0.00030396,2]
[385811570,1758055857063,-500.0,0.00030396,2]
[385811571,1758055857072,-150.0,0.00030396,2]
[385811572,1758055857081,-150.0,0.00030396,2]
[385811573,1758055857091,-500.0,0.00030396,2]
[385811574,1758055857100,-150.0,0.00030396,2]
[385811575,1758055857110,-200.0,0.00030396,2]
[385811576,1758055857119,-150.0,0.00030396,2]
[385811577,1758055857128,-504.40102413,0.00030396,2]
[385811578,1758055857138,-200.0,0.00030396,2]
[385811579,1758055857147,-1000.0,0.00030397,2]
[385811580,1758055857156,-3545.67,0.000304,3]
[385811581,1758055857165,-168.0,0.00030406,2]
[385811582,1758055857174,-168.0,0.00030406,2]
[385811583,1758055857183,-300.0,0.00030409,10]
[385811584,1758055857193,-500.0,0.00030409,6]
[385811585,1758055857202,-500.0,0.00030409,6]
[385811586,1758055857211,-188.5575,0.00030409,2]
[385811587,1758055857221,-500.0,0.00030409,6]
[385811588,1758055857231,-621.19287155,0.00030409,6]
[385811589,1758055857240,-655.53,0.00030409,2]
[385811590,1758055857249,-655.53,0.00030409,2]
[385811591,1758055857258,-400.0,0.0003041,6]
[385811592,1758055857268,-400.0,0.0003041,6]
[385811593,1758055857277,-400.0,0.0003041,6]
[385811594,1758055857286,-399.77605006,0.0003041,6]
[385811595,1758055857296,-401.87219587,0.0003041,6]
[385811596,1758055857305,-410.05834898,0.0003041,6]
[385811597,1758055857314,-400.0,0.0003041,6]
[385811598,1758055857323,-400.0,0.0003041,6]
[385811599,1758055857334,-400.0,0.0003041,6]
[385811600,1758055857345,-400.0,0.0003041,6]
[385811601,1758055857354,-400.0,0.0003041,6]
[385811602,1758055857363,-400.0,0.0003041,6]
[385811603,1758055857373,-400.0,0.0003041,6]
[385811604,1758055857382,-407.95277428,0.0003041,6]
[385811605,1758055857391,-400.0,0.0003041,6]
[385811606,1758055857401,-400.0,0.0003041,6]
[385811607,1758055857411,-400.0,0.0003041,6]
[385811608,1758055857421,-400.0,0.0003041,6]
[385811609,1758055857430,-400.0,0.0003041,6]
[385811610,1758055857732,-400.0,0.0003041,6]
[385811611,1758055857742,-400.0,0.0003041,6]
[385811612,1758055857751,-400.0,0.0003041,6]
[385811613,1758055857761,-400.0,0.0003041,6]
[385811614,1758055857770,-400.0,0.0003041,6]
[385811615,1758055857780,-400.0,0.0003041,6]
[385811616,1758055857789,-400.0,0.0003041,6]
[385811617,1758055857799,-400.0,0.0003041,6]
[385811618,1758055857808,-400.0,0.0003041,6]
[385811619,1758055857818,-400.0,0.0003041,6]
[385811620,1758055857829,-400.0,0.0003041,6]
[385811621,1758055857839,-400.0,0.0003041,6]
[385811622,1758055857848,-400.0,0.0003041,6]
[385811623,1758055857857,-371.2263292,0.0003041,6]
[385811624,1758055857867,-411.49072691,0.0003041,6]
[385811625,1758055857877,-400.0,0.0003041,6]
[385811626,1758055857886,-400.0,0.0003041,6]
[385811627,1758055857897,-400.0,0.0003041,6]
[385811628,1758055857907,-400.0,0.0003041,6]
[385811629,1758055857918,-400.0,0.0003041,6]
[385811630,1758055857927,-400.0,0.0003041,6]
[385811631,1758055857937,-400.0,0.0003041,6]
[385811632,1758055857946,-400.0,0.0003041,6]
[385811633,1758055857958,-400.0,0.0003041,6]
[385811634,1758055857968,-400.0,0.0003041,6]
[385811635,1758055857978,-400.0,0.0003041,6]
[385811636,1758055857988,-400.0,0.0003041,6]
[385811637,1758055857998,-400.0,0.0003041,6]
[385811638,1758055858007,-403.41297196,0.0003041,6]
[385811639,1758055858017,-400.0,0.0003041,6]
[385811640,1758055858026,-400.0,0.0003041,6]
[385811641,1758055858036,-400.0,0.0003041,6]
[385811642,1758055858045,-400.0,0.0003041,6]
[385811643,1758055858055,-403.92584992,0.0003041,6]
[385811644,1758055858065,-400.0,0.0003041,6]
[385811645,1758055858075,-400.0,0.0003041,6]
[385811646,1758055858084,-400.0,0.0003041,6]
[385811647,1758055858093,-400.0,0.0003041,6]
[385811648,1758055858102,-400.0,0.0003041,6]
[385811649,1758055858112,-400.0,0.0003041,6]
[385811650,1758055858122,-400.0,0.0003041,6]
[385811651,1758055858131,-400.0,0.0003041,6]
[385811652,1758055858141,-400.0,0.0003041,6]
[385811653,1758055858151,-400.0,0.0003041,6]
[385811654,1758055858160,-466.26,0.0003041,6]
[385811655,1758055858170,-400.0,0.0003041,6]
[385811656,1758055858180,-400.0,0.0003041,6]
[385811657,1758055858191,-400.0,0.0003041,6]
[385811658,1758055858201,-400.0,0.0003041,6]
[385811659,1758055858210,-400.0,0.0003041,6]
[385811660,1758055858220,-400.0,0.0003041,6]
[385811661,1758055858231,-400.0,0.0003041,6]
[385811662,1758055858240,-400.0,0.0003041,6]
[385811663,1758055858250,-400.0,0.0003041,6]
[385811664,1758055858260,-400.0,0.0003041,6]
[385811665,1758055858269,-403.62286453,0.0003041,6]
[385811666,1758055858279,-400.0,0.0003041,6]
[385811667,1758055858289,-403.24142873,0.0003041,6]
[385811668,1758055858299,-400.0,0.0003041,6]
[385811669,1758055858309,-400.0,0.0003041,6]
[385811670,1758055858318,-400.0,0.0003041,6]
[385811671,1758055858330,-400.0,0.0003041,6]
[385811672,1758055858343,-400.0,0.0003041,6]
[385811673,1758055858352,-400.0,0.0003041,6]
[385811674,1758055858361,-400.0,0.0003041,6]
[385811675,1758055858371,-400.0,0.0003041,6]
[385811676,1758055858380,-400.0,0.0003041,6]
[385811677,1758055858389,-400.0,0.0003041,6]
[385811678,1758055858399,-400.0,0.0003041,6]
[385811679,1758055858408,-400.0,0.0003041,6]
[385811680,1758055858417,-400.0,0.0003041,6]
[385811681,1758055858427,-400.0,0.0003041,6]
[385811682,1758055858437,-400.0,0.0003041,6]
[385811683,1758055858447,-400.0,0.0003041,6]
[385811684,1758055858456,-400.0,0.0003041,6]
[385811685,1758055858465,-400.0,0.0003041,6]
[385811686,1758055858475,-400.0,0.0003041,6]
[385811687,1758055858484,-400.0,0.0003041,6]
[385811688,1758055858493,-402.91106246,0.0003041,6]
[385811689,1758055858502,-400.0,0.0003041,6]
[385811690,1758055858512,-400.0,0.0003041,6]
[385811691,1758055858521,-400.0,0.0003041,6]
[385811692,1758055858530,-400.0,0.0003041,6]
[385811693,1758055858539,-466.99,0.0003041,6]
[385811694,1758055858548,-400.0,0.0003041,6]
[385811695,1758055858558,-400.0,0.0003041,6]
[385811696,1758055858567,-400.0,0.0003041,6]
[385811697,1758055858577,-400.0,0.0003041,6]
[385811698,1758055858588,-400.0,0.0003041,6]
[385811699,1758055858598,-400.0,0.0003041,6]
[385811700,1758055858608,-400.0,0.0003041,6]
[385811701,1758055858617,-400.0,0.0003041,6]
[385811702,1758055858626,-400.0,0.0003041,6]
[385811703,1758055858636,-588.47,0.0003041,6]
[385811704,1758055858645,-400.0,0.0003041,6]
[385811705,1758055858655,-400.0,0.0003041,6]
[385811706,1758055858665,-400.0,0.0003041,6]
[385811707,1758055858674,-400.0,0.0003041,6]
[385811708,1758055858685,-400.0,0.0003041,6]
[385811709,1758055858694,-400.0,0.0003041,6]
[385811710,1758055858704,-400.0,0.0003041,6]
[385811711,1758055858714,-400.0,0.0003041,6]
[385811712,1758055858723,-400.0,0.0003041,6]
[385811713,1758055858733,-400.0,0.0003041,6]
[385811714,1758055858743,-400.0,0.0003041,6]
[385811715,1758055858752,-400.0,0.0003041,6]
[385811716,1758055858761,-400.0,0.0003041,6]
[385811717,1758055858771,-405.26383188,0.0003041,6]
[385811718,1758055858780,-187.6316023,0.0003041,6]
[385811719,1758055858790,-400.0,0.0003041,6]
[385811720,1758055858799,-500.0,0.0003041,14]
[385811721,1758055858810,-400.0,0.0003041,6]
[385811722,1758055858820,-400.0,0.0003041,6]
[385811723,1758055858830,-400.0,0.0003041,6]
[385811724,1758055858839,-400.0,0.0003041,6]
[385811725,1758055858850,-400.0,0.0003041,6]
[385811726,1758055858859,-400.0,0.0003041,6]
[385811727,1758055858869,-400.0,0.0003041,6]
[385811728,1758055858878,-400.0,0.0003041,6]
[385811729,1758055858888,-400.0,0.0003041,6]
[385811730,1758055858897,-400.0,0.0003041,6]
[385811731,1758055858907,-400.0,0.0003041,6]
[385811732,1758055858917,-400.0,0.0003041,6]
[385811733,1758055858926,-400.0,0.0003041,6]
[385811734,1758055858935,-400.0,0.0003041,6]
[385811735,1758055858945,-400.0,0.0003041,6]
[385811736,1758055858954,-400.0,0.0003041,6]
[385811737,1758055858964,-400.0,0.0003041,6]
[385811738,1758055858973,-400.0,0.0003041,6]
[385811739,1758055858983,-412.10258857,0.0003041,6]
[385811740,1758055858993,-400.0,0.0003041,6]
[385811741,1758055859002,-400.0,0.0003041,6]
[385811742,1758055859011,-400.0,0.0003041,6]
[385811743,1758055859021,-400.0,0.0003041,6]
[385811744,1758055859031,-400.0,0.0003041,6]
[385811745,1758055859040,-400.0,0.0003041,6]
[385811746,1758055859050,-400.0,0.0003041,6]
[385811747,1758055859059,-400.0,0.0003041,6]
[385811748,1758055859069,-448.17,0.0003041,6]
[385811749,1758055859078,-400.0,0.0003041,6]
[385811750,1758055859088,-439.12,0.0003041,6]
[385811751,1758055859097,-400.0,0.0003041,6]
[385811752,1758055859107,-400.0,0.0003041,6]
[385811753,1758055859116,-400.0,0.0003041,6]
[385811754,1758055859125,-901.58,0.0003041,6]
[385811755,1758055859134,-400.0,0.0003041,6]
[385811756,1758055859144,-400.0,0.0003041,6]
[385811757,1758055859153,-184.20720248,0.0003041,6]
[385811758,1758055859163,-400.0,0.0003041,6]
[385811759,1758055859172,-568.53,0.0003041,6]
[385811760,1758055859181,-492.93447796,0.0003041,6]
[385811761,1758055859191,-400.0,0.0003041,6]
[385811762,1758055859200,-400.0,0.0003041,6]
[385811763,1758055859210,-400.0,0.0003041,6]
[385811764,1758055859219,-400.0,0.0003041,6]
[385811765,1758055859229,-504.79363184,0.0003041,6]
[385811766,1758055859239,-400.0,0.0003041,6]
[385811767,1758055859250,-400.0,0.0003041,6]
[385811768,1758055859260,-400.0,0.0003041,6]
[385811769,1758055859270,-400.0,0.0003041,6]
[385811770,1758055859279,-583.89,0.0003041,6]
[385811771,1758055859288,-400.0,0.0003041,6]
[385811772,1758055859297,-436.00651345,0.0003041,6]
[385811773,1758055859306,-400.0,0.0003041,6]
[385811774,1758055859315,-400.0,0.0003041,6]
[385811775,1758055859325,-400.0,0.0003041,6]
[385811776,1758055859336,-420.04379915,0.0003041,6]
[385811777,1758055859347,-400.0,0.0003041,6]
[385811778,1758055859357,-400.0,0.0003041,2]
[385811779,1758055859366,-400.0,0.0003041,6]
[385811780,1758055859375,-400.0,0.0003041,6]
[385811781,1758055859386,-400.0,0.0003041,6]
[385811782,1758055859396,-207.53398161,0.0003041,6]
[385811783,1758055859405,-400.0,0.0003041,6]
[385811784,1758055859415,-400.0,0.0003041,6]
[385811785,1758055859425,-400.0,0.0003041,6]
[385811786,1758055859435,-400.0,0.0003041,6]
[385811787,1758055859445,-400.0,0.0003041,6]
[385811788,1758055859454,-400.0,0.0003041,6]
[385811789,1758055859463,-614.16,0.0003041,6]
[385811790,1758055859473,-400.0,0.0003041,6]
[385811791,1758055859483,-400.0,0.0003041,6]
[385811792,1758055859492,-400.0,0.0003041,6]
[385811793,1758055859502,-400.0,0.0003041,6]
[385811794,1758055859512,-677.09,0.0003041,6]
[385811795,1758055859522,-400.0,0.0003041,6]
[385811796,1758055859531,-400.0,0.0003041,6]
[385811797,1758055859540,-400.0,0.0003041,6]
[385811798,1758055859550,-400.0,0.0003041,6]
[385811799,1758055859559,-400.0,0.0003041,6]
[385811800,1758055859569,-442.39,0.0003041,6]
[385811801,1758055859578,-170.10944963,0.0003041,6]
[385811802,1758055859587,-437.71,0.0003041,6]
[385811803,1758055859597,-771.61,0.0003041,6]
[385811804,1758055859607,-400.0,0.0003041,6]
[385811805,1758055859617,-400.0,0.0003041,6]
[385811806,1758055859626,-933.64,0.0003041,6]
[385811807,1758055859635,-400.0,0.0003041,6]
[385811808,1758055859645,-400.0,0.0003041,6]
[385811809,1758055859654,-400.0,0.0003041,6]
[385811810,1758055859663,-400.0,0.0003041,6]
[385811811,1758055859673,-555.07,0.0003041,6]
[385811812,1758055859683,-400.0,0.0003041,6]
[385811813,1758055859692,-400.0,0.0003041,6]
[385811814,1758055859702,-400.0,0.0003041,6]
[385811815,1758055859711,-400.0,0.0003041,6]
[385811816,1758055859721,-438.36,0.0003041,6]
[385811817,1758055859731,-400.0,0.0003041,6]
[385811818,1758055859741,-400.0,0.0003041,6]
[385811819,1758055859750,-400.0,0.0003041,6]
[385811820,1758055859760,-400.0,0.0003041,6]
[385811821,1758055859770,-584.99,0.0003041,6]
[385811822,1758055859779,-400.0,0.0003041,6]
[385811823,1758055859788,-400.0,0.0003041,6]
[385811824,1758055859802,-433.4,0.0003041,6]
[385811825,1758055859813,-400.0,0.0003041,6]
[385811826,1758055859824,-403.58531172,0.0003041,6]
[385811827,1758055859835,-400.0,0.0003041,6]
[385811828,1758055859846,-400.0,0.0003041,6]
[385811829,1758055859857,-400.0,0.0003041,6]
[385811830,1758055859866,-194.58157461,0.0003041,6]
[385811831,1758055859876,-400.0,0.0003041,6]
[385811832,1758055859885,-400.22,0.0003041,6]